bitfinex-derivatives/quotes_BNBF0:USTF0_20241225
["timestamp","ask_amount","ask_price","bid_price","bid_amount"]
[1735133938956,0.25953665,709.15,707.51,1.05648673]
[1735133939152,0.25953665,709.14,707.51,1.05648673]
[1735133939454,0.25953665,709.13,707.51,1.05648673]
[1735133939654,0.25953665,709.12,707.51,1.05648673]
[1735133939856,0.25953665,709.11,707.52,1.05648673]
[1735133940052,0.28201584,709.18,707.52,1.05648673]
[1735133940053,0.25953665,709.1,707.52,1.05648673]
[1735133940259,0.25953665,709.09,707.52,1.05648673]
[1735133940451,0.25953665,709.08,707.52,1.05648673]
[1735133940655,0.25953665,709.07,707.52,1.05648673]
[1735133940957,0.28201584,709.18,707.41,0.28272147]
[1735133940958,0.25953665,709.06,707.47,1.05648673]
[1735133941152,0.25954544,709.05,707.47,1.05648673]
[1735133941357,0.25954544,709.04,707.47,1.05648673]
[1735133941552,0.25954544,709.03,707.47,1.05648673]
[1735133941755,0.25954544,709.02,707.47,1.05648673]
[1735133941951,0.28201584,709.18,707.41,0.28272147]
[1735133941952,0.25953745,709.01,707.51,1.05648673]
[1735133942155,0.28201584,709.18,707.51,1.05648673]
[1735133942452,0.25951459,709.17,707.51,1.05648673]
[1735133943155,0.25951459,709.17,707.41,1.3392082]
[1735133943156,0.25951459,709.17,707.53,1.05648673]
[1735133943755,0.25949856,709.16,707.53,1.05648673]
[1735133943957,0.25949856,709.15,707.51,1.05648673]
[1735133944253,0.28201584,709.18,707.51,1.05648673]
[1735133944959,0.28201584,709.18,707.5,1.05648673]
[1735133946358,0.28201584,709.18,707.57,1.05648673]
[1735133947161,0.28201584,709.18,707.6,1.05648673]
[1735133948262,0.28201584,709.18,707.58,1.05648673]
[1735133949463,0.28201584,709.18,707.66,1.05648673]
[1735133950063,0.28201584,709.18,707.65,1.05648673]
[1735133950265,0.28201584,709.18,707.66,0.825]
[1735133952063,0.28201584,709.18,707.66,1.88148673]
[1735133953167,0.28201584,709.18,707.68,1.05648673]
[1735133953870,0.28201584,709.18,707.66,0.825]
[1735133963275,0.28201584,709.18,707.68,1.05648673]
[1735133963975,0.28201584,709.18,707.66,1.88148673]
[1735133964975,0.28201584,709.18,707.68,1.05648673]
[1735133965975,0.28201584,709.18,707.75,1.05648673]
[1735133967175,0.28201584,709.18,707.46,1.05648673]
[1735133967574,0.28201584,709.18,707.47,0.555]
[1735133967980,0.28201584,709.18,707.47,1.61148673]
[1735133969479,0.28201584,709.18,707.47,0.555]
[1735133971584,0.28201584,709.18,707.53,1.05648673]
[1735133972383,0.28201584,709.18,707.74,1.05648673]
[1735133973281,0.28201584,709.18,707.78,1.05648673]
[1735133974485,0.28201584,709.18,707.75,1.05648673]
[1735133975282,0.28201584,709.18,707.47,0.555]
[1735133975283,0.28201584,709.18,707.8,1.05648673]
[1735133976186,0.28201584,709.18,707.81,1.05648673]
[1735133976886,0.25945587,709.17,707.81,1.05648673]
[1735133977084,0.25945587,709.17,707.82,1.05648673]
[1735133977283,0.28201584,709.18,707.82,1.05648673]
[1735133978290,0.28201584,709.18,707.92,1.05648673]
[1735133979686,0.28201584,709.18,707.47,0.555]
[1735133979687,0.28201584,709.18,707.91,1.05648673]
[1735133980689,0.28201584,709.18,707.94,1.05648673]
[1735133981890,0.28201584,709.18,707.96,1.05648673]
[1735133982793,0.28201584,709.18,707.59,1.05648673]
[1735133983791,0.28201584,709.18,707.58,1.05648673]
[1735133984493,0.28201584,709.18,707.57,1.05648673]
[1735133985394,0.28201584,709.18,707.55,1.05648673]
[1735133986186,0.28201584,709.18,707.59,1.05648673]
[1735133987097,0.28201584,709.18,707.58,1.05648673]
[1735133988093,0.28201584,709.18,707.72,1.05648673]
[1735133988995,0.28201584,709.18,707.97,1.05648673]
[1735133990289,0.28201584,709.18,707.94,1.05648673]
[1735133991391,0.28201584,709.18,707.95,1.05648673]
[1735133991795,0.28201584,709.18,707.96,0.579]
[1735133991998,0.28201584,709.18,707.96,0.86150183]
[1735133999201,0.25945625,709.17,707.96,0.86150183]
[1735133999801,0.28201584,709.18,707.96,0.86150183]
[1735134000000,0.2594564,709.17,707.96,0.86150183]
[1735134000597,0.28201584,709.18,707.96,0.86150183]
[1735134000802,0.25944843,709.17,707.96,0.86150183]
[1735134002000,0.25944843,709.17,707.97,1.05648673]
[1735134003803,0.25946097,709.16,707.97,1.05648673]
[1735134004002,0.25946097,709.15,707.97,1.05648673]
[1735134004199,0.25946097,709.14,707.97,1.05648673]
[1735134004399,0.25946097,709.13,707.96,0.86150183]
[1735134004602,0.25946097,709.12,707.96,0.86150183]
[1735134004801,0.25946097,709.11,707.96,0.86150183]
[1735134004997,0.28201584,709.18,707.96,0.86150183]
[1735134005203,0.25946187,709.17,707.96,0.86150183]
[1735134006405,0.25946187,709.17,707.96,1.91798856]
[1735134006599,0.2594602,709.16,707.96,1.91798856]
[1735134006798,0.28201584,709.18,707.96,1.91798856]
[1735134007499,0.28201584,709.18,707.96,0.86150183]
[1735134014512,0.25945137,709.17,707.96,0.86150183]
[1735134015106,0.28201584,709.18,707.96,0.86150183]
[1735134015712,0.28201584,709.18,707.96,0.28250183]
[1735134017010,0.28201584,709.18,707.97,0.726]
[1735134017211,0.28201584,709.18,707.97,1.78248673]
[1735134018311,0.28201584,709.18,707.98,1.05648673]
[1735134019213,0.28201584,709.18,707.97,0.726]
[1735134031016,0.25944073,709.17,707.97,0.726]
[1735134031516,0.25944067,709.16,707.97,0.726]
[1735134031715,0.28201584,709.18,708.05,1.05648673]
[1735134031916,0.25944045,709.17,708.05,1.05648673]
[1735134032221,0.2594455,709.16,708.05,1.05648673]
[1735134032420,0.2594455,709.15,708.05,1.05648673]
[1735134032723,0.28201584,709.18,707.97,0.726]
[1735134032724,0.28201584,709.18,708.04,1.05648673]
[1735134032919,0.25944131,709.17,708.04,1.05648673]
[1735134033536,0.25944131,709.17,708.06,1.05648673]
[1735134033720,0.28201584,709.18,708.06,1.05648673]
[1735134034524,0.28201584,709.18,708.03,1.05648673]
[1735134035025,0.25944373,709.17,708.03,1.05648673]
[1735134035620,0.25944373,709.17,708.01,1.05648673]
[1735134036724,0.25947369,709.16,708.02,1.05648673]
[1735134037025,0.25947369,709.15,708.02,1.05648673]
[1735134037232,0.28201584,709.18,708.02,1.05648673]
[1735134037625,0.25950899,709.17,708.02,1.05648673]
[1735134037822,0.25950899,709.17,707.97,0.726]
[1735134039121,0.28201584,709.18,707.97,0.726]
[1735134040328,0.25951691,709.17,707.97,0.726]
[1735134040623,0.25952992,709.16,707.97,0.726]
[1735134040828,0.25952992,709.15,707.97,0.726]
[1735134041028,0.28201584,709.18,707.97,0.726]
[1735134041221,0.25952683,709.17,707.97,0.726]
[1735134043832,0.28201584,709.18,707.97,0.726]
[1735134047033,0.28201584,709.18,707.96,0.28250183]
[1735134048128,0.28201584,709.18,707.97,0.786]
[1735134053939,0.25949631,709.17,707.97,0.786]
[1735134057235,0.25949902,709.16,707.97,0.786]
[1735134057444,0.25949902,709.15,707.97,0.786]
[1735134057739,0.25949902,709.14,707.97,0.786]
[1735134057935,0.25949915,709.13,707.97,0.786]
[1735134058135,0.25949915,709.12,707.97,0.786]
[1735134058339,0.25949915,709.11,707.97,0.786]
[1735134058550,0.25949915,709.1,707.97,0.786]
[1735134058736,0.25949915,709.09,707.97,0.786]
[1735134058937,0.25949915,709.08,707.97,0.786]
[1735134059240,0.25949915,709.07,707.97,0.786]
[1735134059438,0.25949915,709.06,707.97,0.786]
[1735134059638,0.25949915,709.05,707.97,0.786]
[1735134059834,0.25949915,709.04,707.97,0.786]
[1735134060134,0.28201584,709.18,707.97,0.786]
[1735134060341,0.25949863,709.17,707.97,0.786]
[1735134060743,0.25949058,709.16,707.97,0.786]
[1735134060935,0.25949058,709.15,707.97,0.786]
[1735134061139,0.25949058,709.14,707.97,0.786]
[1735134061441,0.28201584,709.18,707.97,0.786]
[1735134061442,0.25949058,709.13,707.97,0.786]
[1735134061635,0.25949058,709.12,707.97,0.786]
[1735134061840,0.25949058,709.11,707.97,0.786]
[1735134062036,0.25949058,709.1,707.97,0.786]
[1735134062241,0.25949058,709.09,707.97,0.786]
[1735134062441,0.25949058,709.08,707.97,0.786]
[1735134062639,0.25949058,709.07,707.97,0.786]
[1735134062846,0.28201584,709.18,707.97,0.786]
[1735134063046,0.25948265,709.17,707.97,0.786]
[1735134063362,0.25948265,709.17,707.96,0.28250183]
[1735134064048,0.25947734,709.16,707.96,0.28250183]
[1735134064246,0.25947734,709.15,707.96,0.28250183]
[1735134064440,0.25947734,709.17,707.97,0.709]
[1735134064639,0.25947734,709.16,707.97,0.709]
[1735134064845,0.25947734,709.17,707.97,0.709]
[1735134066949,0.2594801,709.16,707.97,0.709]
[1735134067148,0.2594801,709.15,707.97,0.709]
[1735134067343,0.2594801,709.14,707.97,0.709]
[1735134067541,0.2594801,709.13,707.97,0.709]
[1735134067743,0.2594801,709.12,707.97,0.709]
[1735134067946,0.2594801,709.11,707.97,0.709]
[1735134068145,0.2594801,709.17,707.97,0.709]
[1735134068344,0.2594801,709.16,707.97,0.709]
[1735134068546,0.2594801,709.15,707.97,0.709]
[1735134068743,0.2594801,709.14,707.97,0.709]
[1735134068944,0.2594801,709.13,707.97,0.709]
[1735134069144,0.2594801,709.12,707.97,0.709]
[1735134069343,0.2594801,709.11,707.97,0.709]
[1735134069547,0.25948374,709.1,707.97,0.709]
[1735134069850,0.28201584,709.18,707.97,0.709]
[1735134074854,0.25951768,709.17,707.97,0.709]
[1735134075056,0.25951921,709.16,707.97,0.709]
[1735134075351,0.25951921,709.15,707.97,0.709]
[1735134075555,0.25951921,709.14,707.97,0.709]
[1735134075750,0.28201584,709.18,707.97,0.709]
[1735134075751,0.25951921,709.13,707.97,0.709]
[1735134076054,0.25951921,709.12,707.97,0.709]
[1735134076254,0.25951921,709.11,707.97,0.709]
[1735134076455,0.25951921,709.1,707.97,0.709]
[1735134076655,0.25951921,709.09,707.97,0.709]
[1735134076857,0.25951921,709.08,707.97,0.709]
[1735134077157,0.25951921,709.07,707.97,0.709]
[1735134077348,0.28201584,709.18,707.97,0.709]
[1735134077551,0.25953699,709.17,707.97,0.709]
[1735134077755,0.25953506,709.16,707.97,0.709]
[1735134077957,0.25953506,709.15,707.97,0.709]
[1735134078253,0.28201584,709.18,707.97,0.709]
[1735134079953,0.25950153,709.17,707.97,0.709]
[1735134080350,0.28201584,709.18,707.97,0.709]
[1735134080554,0.25949865,709.17,707.97,0.709]
[1735134081155,0.28201584,709.18,707.97,0.709]
[1735134081349,0.2595096,709.17,707.97,0.709]
[1735134081655,0.2595096,709.17,707.68,1.05648673]
[1735134081856,0.2595096,709.17,707.65,1.05648673]
[1735134082158,0.2595096,709.17,707.65,1.33911232]
[1735134082656,0.2595096,709.17,707.66,1.84048673]
[1735134083252,0.2820238,709.16,707.66,1.84048673]
[1735134083456,0.2595096,709.15,707.72,1.05648673]
[1735134084455,0.2595096,709.15,707.71,1.05648673]
[1735134085555,0.2595096,709.15,707.66,0.784]
[1735134085956,0.2820238,709.16,707.66,0.784]
[1735134086155,0.25955436,709.15,707.66,0.784]
[1735134088755,0.25951761,709.14,707.66,0.784]
[1735134089058,0.25951761,709.13,707.66,0.784]
[1735134089260,0.25951761,709.12,707.66,0.784]
[1735134089461,0.2820238,709.16,707.66,0.784]
[1735134089660,0.25951997,709.15,707.66,0.784]
[1735134090758,0.28203175,709.14,707.66,0.784]
[1735134090958,0.25951997,709.13,707.66,0.784]
[1735134091460,0.28203971,709.12,707.66,0.784]
[1735134091761,0.25954294,709.11,707.66,0.784]
[1735134091959,0.28204766,709.1,707.66,0.784]
[1735134092160,0.25954294,709.09,707.66,0.784]
[1735134094560,0.28205562,709.08,707.66,0.784]
[1735134094760,0.25954294,709.07,707.66,0.784]
[1735134094955,0.28206357,709.06,707.66,0.784]
[1735134095259,0.25954294,709.05,707.66,0.784]
[1735134099564,0.28207551,709.03,707.66,0.784]
[1735134099763,0.25954294,709.02,707.66,0.784]
[1735134101063,0.28208346,709.01,707.66,0.784]
[1735134101264,0.25954294,709.0,707.66,0.784]
[1735134101664,0.28209142,708.99,707.66,0.784]
[1735134101865,0.25954294,708.98,707.66,0.784]
[1735134102660,0.28209142,708.99,707.66,0.784]
[1735134102863,0.25960116,708.98,707.66,0.784]
[1735134106168,0.28209142,708.99,707.66,0.784]
[1735134106367,0.25958827,708.97,707.66,0.784]
[1735134106562,0.54169163,708.96,707.66,0.784]
[1735134106762,0.25958827,708.95,707.66,0.784]
[1735134107666,0.28210336,708.96,707.66,0.784]
[1735134109766,0.28210336,708.96,707.65,0.28262559]
[1735134110973,0.28210336,708.96,707.66,0.552]
[1735134115773,0.25956419,708.95,707.66,0.552]
[1735134115976,0.28211132,708.94,707.66,0.552]
[1735134116677,0.25956422,708.93,707.66,0.552]
[1735134117071,0.28211928,708.92,707.66,0.552]
[1735134117275,0.25956422,708.91,707.66,0.552]
[1735134119582,0.28211928,708.92,707.66,0.552]
[1735134119784,0.25957418,708.91,707.66,0.552]
[1735134121578,0.25957795,708.9,707.66,0.552]
[1735134121782,0.25957795,708.89,707.66,0.552]
[1735134122085,0.25957795,708.88,707.66,0.552]
[1735134122285,0.25957795,708.91,707.66,0.552]
[1735134122588,0.25957795,708.9,707.66,0.552]
[1735134122784,0.25957795,708.89,707.66,0.552]
[1735134122980,0.25957795,708.88,707.66,0.552]
[1735134123183,0.25957795,708.87,707.66,0.552]
[1735134123380,0.25957795,708.86,707.66,0.552]
[1735134123584,0.28211928,708.92,707.66,0.552]
[1735134123783,0.25957484,708.91,707.66,0.552]
[1735134123985,0.25957484,708.91,707.65,0.28262559]
[1735134124381,0.2595933,708.9,707.65,0.28262559]
[1735134124579,0.2595933,708.89,707.65,0.28262559]
[1735134124784,0.2595933,708.88,707.65,0.28262559]
[1735134125085,0.2595933,708.87,707.66,0.695]
[1735134125279,0.2595933,708.86,707.66,0.695]
[1735134125486,0.2595933,708.85,707.66,0.695]
[1735134125782,0.2595933,708.84,707.66,0.695]
[1735134125982,0.2595933,708.83,707.66,0.695]
[1735134126177,0.2595933,708.82,707.66,0.695]
[1735134126384,0.2595933,708.81,707.66,0.695]
[1735134126584,0.2595933,708.8,707.66,0.695]
[1735134126785,0.2595933,708.79,707.66,0.695]
[1735134126980,0.2595933,708.78,707.66,0.695]
[1735134127189,0.28211928,708.92,707.66,0.695]
[1735134127390,0.25958478,708.91,707.66,0.695]
[1735134127691,0.28212723,708.9,707.66,0.695]
[1735134127990,0.25958478,708.89,707.66,0.695]
[1735134128191,0.28213519,708.88,707.66,0.695]
[1735134128489,0.25958478,708.87,707.66,0.695]
[1735134129085,0.28214315,708.86,707.66,0.695]
[1735134129283,0.25958478,708.85,707.66,0.695]
[1735134129790,0.28214315,708.86,707.66,0.695]
[1735134129986,0.25957946,708.85,707.66,0.695]
[1735134130791,0.25957118,708.84,707.66,0.695]
[1735134130986,0.25957118,708.83,707.66,0.695]
[1735134131188,0.25957118,708.82,707.66,0.695]
[1735134131389,0.28214315,708.86,707.66,0.695]
[1735134131587,0.25957079,708.85,707.66,0.695]
[1735134131991,0.25957079,708.85,707.67,1.05648673]
[1735134132692,0.25957085,708.84,707.67,1.05648673]
[1735134132908,0.28214315,708.86,707.71,1.05648673]
[1735134133893,0.28214315,708.86,707.66,0.695]
[1735134141097,0.28214315,708.86,707.65,0.28262559]
[1735134141295,0.25956121,708.85,707.65,0.28262559]
[1735134141995,0.25956121,708.85,707.67,1.05648673]
[1735134142400,0.28214315,708.86,707.68,0.667]
[1735134142894,0.28214315,708.86,707.68,1.72348673]
[1735134143399,0.25956263,708.85,707.68,1.72348673]
[1735134143898,0.25955675,708.84,707.68,1.72348673]
[1735134144093,0.28214315,708.86,707.76,1.05648673]
[1735134144498,0.25955757,708.85,707.76,1.05648673]
[1735134145102,0.28214315,708.86,707.76,1.05648673]
[1735134145297,0.28214315,708.86,707.71,1.05648673]
[1735134145799,0.25955742,708.85,707.71,1.05648673]
[1735134146000,0.28214315,708.86,707.71,1.05648673]
[1735134146299,0.28214315,708.86,707.69,1.05648673]
[1735134147301,0.28214315,708.86,707.68,1.72348673]
[1735134147901,0.28214315,708.86,707.69,1.05648673]
[1735134148901,0.28214315,708.86,707.7,1.05648673]
[1735134149596,0.28214315,708.86,707.69,1.05648673]
[1735134151896,0.28214315,708.86,707.68,0.667]
[1735134159407,0.25958201,708.85,707.68,0.667]
[1735134160602,0.25958769,708.84,707.68,0.667]
[1735134160807,0.25958769,708.83,707.68,0.667]
[1735134161007,0.25958769,708.82,707.68,0.667]
[1735134161209,0.25958769,708.81,707.68,0.667]
[1735134161409,0.25958769,708.8,707.68,0.667]
[1735134161604,0.25958769,708.79,707.68,0.667]
[1735134161810,0.25958769,708.78,707.68,0.667]
[1735134162008,0.28214315,708.86,707.68,0.667]
[1735134162205,0.25959206,708.85,707.68,0.667]
[1735134162407,0.25959206,708.84,707.68,0.667]
[1735134162608,0.25959206,709.02,707.68,0.667]
[1735134162811,0.25959206,709.01,707.68,0.667]
[1735134163006,0.25959206,709.02,707.68,0.667]
[1735134163210,0.25959206,709.01,707.68,0.667]
[1735134163406,0.25959206,709.02,707.68,0.667]
[1735134163609,0.28207551,709.03,707.68,0.667]
[1735134163610,0.25959206,709.01,707.68,0.667]
[1735134163809,0.25959206,709.0,707.68,0.667]
[1735134164008,0.25959206,708.99,707.68,0.667]
[1735134164209,0.25958134,708.98,707.68,0.667]
[1735134164409,0.25958134,708.97,707.68,0.667]
[1735134164612,0.28207551,709.03,707.68,0.667]
[1735134164613,0.25958134,708.96,707.68,0.667]
[1735134164808,0.25958134,708.95,707.68,0.667]
[1735134165009,0.25958134,708.94,707.68,0.667]
[1735134165314,0.25958134,708.93,707.68,0.667]
[1735134165613,0.54170062,708.92,707.68,0.667]
[1735134165813,0.25958134,708.91,707.68,0.667]
[1735134166314,0.28211928,708.92,707.68,0.667]
[1735134166315,0.25957923,708.9,707.68,0.667]
[1735134166510,0.25957923,708.89,707.68,0.667]
[1735134166710,0.25957923,708.88,707.68,0.667]
[1735134166914,0.25957923,708.87,707.68,0.667]
[1735134167211,0.25958527,708.86,707.68,0.667]
[1735134167514,0.28211928,708.92,707.68,0.667]
[1735134167714,0.25958718,708.91,707.68,0.667]
[1735134169014,0.28211928,708.92,707.68,0.667]
[1735134169315,0.25957661,708.91,707.68,0.667]
[1735134170615,0.28211928,708.92,707.68,0.667]
[1735134170815,0.25957433,708.91,707.68,0.667]
[1735134172019,0.28211928,708.92,707.68,0.667]
[1735134173120,0.25957564,708.91,707.68,0.667]
[1735134174617,0.25957371,708.9,707.68,0.667]
[1735134174814,0.25957371,708.89,707.68,0.667]
[1735134175019,0.25957371,708.88,707.68,0.667]
[1735134175219,0.25957371,708.87,707.68,0.667]
[1735134175415,0.28211928,708.92,707.68,0.667]
[1735134175719,0.25956749,708.91,707.68,0.667]
[1735134177422,0.28211928,708.92,707.68,0.667]
[1735134177621,0.25957323,708.91,707.68,0.667]
[1735134180329,0.25956722,708.9,707.68,0.667]
[1735134180525,0.28211928,708.92,707.68,0.667]
[1735134180526,0.25956722,708.89,707.68,0.667]
[1735134180726,0.25956722,708.88,707.68,0.667]
[1735134180923,0.25956722,708.87,707.68,0.667]
[1735134181129,0.25957241,708.86,707.68,0.667]
[1735134181324,0.25957241,708.85,707.71,1.05648673]
[1735134181524,0.25957241,708.84,707.71,1.05648673]
[1735134181729,0.25957241,708.83,707.71,1.05648673]
[1735134181930,0.25957241,708.82,707.7,1.05648673]
[1735134182130,0.25957241,708.81,707.7,1.05648673]
[1735134182329,0.28211928,708.92,707.7,1.05648673]
[1735134182532,0.25956883,708.91,707.7,1.05648673]
[1735134182832,0.25956883,708.91,707.71,0.826]
[1735134183847,0.25956883,708.91,707.75,1.05648673]
[1735134185033,0.28211928,708.92,707.75,1.05648673]
[1735134185230,0.25955874,708.91,707.75,1.05648673]
[1735134186133,0.25955874,708.91,707.74,1.05648673]
[1735134187631,0.25955874,708.91,707.73,1.05648673]
[1735134188737,0.25956492,708.9,707.73,1.05648673]
[1735134189037,0.25956492,708.89,707.73,1.05648673]
[1735134189238,0.25956492,708.88,707.73,1.05648673]
[1735134189437,0.25956492,708.87,707.73,1.05648673]
[1735134189634,0.25956492,708.86,707.74,1.05648673]
[1735134189840,0.25956492,708.85,707.74,1.05648673]
[1735134190039,0.25956492,708.84,707.74,1.05648673]
[1735134190341,0.25956492,708.83,707.74,1.05648673]
[1735134190534,0.25956492,708.82,707.76,1.05648673]
[1735134190734,0.25956492,708.91,707.76,1.05648673]
[1735134190937,0.25956492,708.9,707.75,1.05648673]
[1735134191138,0.25956492,708.89,707.75,1.05648673]
[1735134191336,0.25956492,708.88,707.75,1.05648673]
[1735134191543,0.25956492,708.87,707.75,1.05648673]
[1735134191742,0.25956492,708.86,707.75,1.05648673]
[1735134192037,0.25956492,708.85,707.75,1.05648673]
[1735134192238,0.25956492,708.84,707.75,1.05648673]
[1735134192443,0.25956492,708.83,707.75,1.05648673]
[1735134192643,0.28211928,708.92,707.75,1.05648673]
[1735134192844,0.25955539,708.91,707.75,1.05648673]
[1735134193439,0.28211928,708.92,707.71,0.826]
[1735134193440,0.28211928,708.92,707.77,1.05648673]
[1735134193638,0.25955285,708.91,707.77,1.05648673]
[1735134194445,0.25955285,708.91,707.71,0.826]
[1735134196245,0.28211928,708.92,707.71,0.826]
[1735134199947,0.28211928,708.92,707.65,0.28262559]
[1735134200947,0.28211928,708.92,707.66,0.612]
[1735134204848,0.28211928,708.92,707.67,0.2826176]
[1735134220761,0.28211928,708.92,707.68,1.05648673]
[1735134221662,0.28211928,708.92,707.67,0.2826176]
[1735134222464,0.28211928,708.92,707.67,1.33910433]
[1735134223260,0.28211928,708.92,707.7,1.05648673]
[1735134224158,0.28211928,708.92,707.71,0.706]
[1735134224564,0.28211928,708.92,707.71,1.76248673]
[1735134225259,0.28211928,708.92,707.72,1.05648673]
[1735134226176,0.28211928,708.92,707.71,0.706]
[1735134228364,0.25957735,708.91,707.71,0.706]
[1735134229769,0.28211928,708.92,707.71,0.706]
[1735134239876,0.25957045,708.91,707.71,0.706]
[1735134240773,0.25957269,708.9,707.71,0.706]
[1735134240969,0.28211928,708.92,707.71,0.706]
[1735134241275,0.25957577,708.91,707.71,0.706]
[1735134241572,0.28212723,708.9,707.71,0.706]
[1735134241772,0.25957577,708.89,707.71,0.706]
[1735134241967,0.54170698,708.89,707.71,0.706]
[1735134242172,0.28213121,708.89,707.71,0.706]
[1735134252776,0.28213121,708.89,707.71,1.76248673]
[1735134253778,0.28213121,708.89,707.72,1.05648673]
[1735134255380,0.28213121,708.89,707.73,0.694]
[1735134273490,0.28213121,708.89,707.67,0.2826176]
[1735134274898,0.28213121,708.89,707.68,0.687]
[1735134278286,0.25965112,708.88,707.68,0.687]
[1735134279294,0.2596854,708.87,707.68,0.687]
[1735134279494,0.28213121,708.89,707.68,0.687]
[1735134279495,0.2596854,708.86,707.68,0.687]
[1735134279690,0.2596854,708.85,707.68,0.687]
[1735134279993,0.2596854,708.84,707.68,0.687]
[1735134280190,0.2596854,708.83,707.68,0.687]
[1735134280390,0.2596854,708.82,707.68,0.687]
[1735134280593,0.2596854,708.81,707.68,0.687]
[1735134280793,0.2596854,708.8,707.68,0.687]
[1735134280989,0.28213121,708.89,707.68,0.687]
[1735134288501,0.25963963,708.88,707.68,0.687]
[1735134288699,0.28213917,708.87,707.68,0.687]
[1735134289012,0.25963963,708.86,707.68,0.687]
[1735134289594,0.28214713,708.85,707.68,0.687]
[1735134303409,0.25958305,708.84,707.68,0.687]
[1735134304019,0.28214713,708.85,707.68,0.687]
[1735134309918,0.25957224,708.84,707.68,0.687]
[1735134310120,0.28214713,708.85,707.68,0.687]
[1735134310312,0.25956933,708.84,707.68,0.687]
[1735134310516,0.28214713,708.85,707.68,0.687]
[1735134310819,0.25956943,708.84,707.68,0.687]
[1735134312020,0.2821551,708.83,707.68,0.687]
[1735134312418,0.25967221,708.82,707.68,0.687]
[1735134312723,0.54183161,708.81,707.68,0.687]
[1735134313024,0.25966855,708.8,707.68,0.687]
[1735134314420,0.28217102,708.79,707.68,0.687]
[1735134314621,0.25966855,708.78,707.68,0.687]
[1735134314823,0.2596789,708.77,707.68,0.687]
[1735134315028,0.2596789,708.76,707.68,0.687]
[1735134315223,0.2596789,708.75,707.68,0.687]
[1735134315517,0.2596789,708.74,707.68,0.687]
[1735134315722,0.2596789,708.73,707.68,0.687]
[1735134315914,0.2596789,708.72,707.68,0.687]
[1735134316116,0.2596789,708.71,707.68,0.687]
[1735134316318,0.2596789,708.7,707.68,0.687]
[1735134316521,0.54188973,708.69,707.68,0.687]
[1735134316717,0.2596789,708.68,707.68,0.687]
[1735134317322,0.2822188,708.67,707.68,0.687]
[1735134317623,0.25967302,708.66,707.68,0.687]
[1735134319717,0.25966356,708.65,707.68,0.687]
[1735134320033,0.25966356,708.64,707.68,0.687]
[1735134320323,0.25966385,708.63,707.68,0.687]
[1735134320626,0.25967287,708.62,707.68,0.687]
[1735134320825,0.25967287,708.61,707.68,0.687]
[1735134321020,0.2596737,708.6,707.68,0.687]
[1735134321222,0.2596737,708.59,707.68,0.687]
[1735134321424,0.2596737,708.58,707.68,0.687]
[1735134321624,0.2596737,708.57,707.68,0.687]
[1735134321925,0.2822188,708.67,707.68,0.687]
[1735134322124,0.25966319,708.66,707.68,0.687]
[1735134323124,0.25966339,708.65,707.68,0.687]
[1735134323424,0.25966339,708.64,707.68,0.687]
[1735134323620,0.25966339,708.63,707.68,0.687]
[1735134323925,0.25966339,708.62,707.68,0.687]
[1735134324119,0.25966339,708.61,707.68,0.687]
[1735134324319,0.25966339,708.6,707.68,0.687]
[1735134324520,0.25966339,708.59,707.68,0.687]
[1735134324722,0.2822188,708.67,707.68,0.687]
[1735134324929,0.25965953,708.66,707.68,0.687]
[1735134325821,0.25966788,708.65,707.68,0.687]
[1735134326021,0.25966788,708.64,707.68,0.687]
[1735134326223,0.25966788,708.63,707.68,0.687]
[1735134326519,0.25966788,708.62,707.68,0.687]
[1735134326719,0.2822188,708.67,707.68,0.687]
[1735134326920,0.25966407,708.66,707.68,0.687]
[1735134328530,0.2822188,708.67,707.68,0.687]
[1735134328721,0.25966807,708.66,707.68,0.687]
[1735134329328,0.25966413,708.65,707.68,0.687]
[1735134329625,0.25966413,708.64,707.68,0.687]
[1735134329825,0.25966413,708.63,707.68,0.687]
[1735134330021,0.25966413,708.62,707.68,0.687]
[1735134330225,0.2822188,708.67,707.68,0.687]
[1735134330430,0.25966483,708.66,707.68,0.687]